Cogmind - Beta 16 @@@ ROGUE MODE // 2025.11.19 @ 22:42:31 Player: Lis Result: Destroyed by G-34 Mercenary with Small Laser Performance ------------- Evolutions (0) 0 Regions Visited (1) 200 Robots Destroyed (19) 95 Value Destroyed (490) 490 Prototype IDs (0) 0 Alien Tech Used (0) 0 Bonus (0) 0 TOTAL SCORE: 785 Bonus ------- None Cogmind --------- Core Integrity 0/250 Matter 143/300 Energy 160/160 System Corruption 0% Temperature Cool (6) Movement Walking (120) Location -10/Materials Parts ------- > --- POWER (1) -------- Light Nuclear Core > --- PROPULSION (2) --- Aluminum Leg Aluminum Leg > --- UTILITY (2) ------ Heat Sink Medium Storage Unit > --- WEAPON (2) ------- Grenade Launcher Datajack > --- INVENTORY (10) --- Ion Engine Particle Gun Light Assault Rifle Light Assault Rifle Grenade Launcher Datajack Peak State ------------ > --- POWER ------------ Light Nuclear Core > --- PROPULSION ------- Aluminum Leg Aluminum Leg > --- UTILITY ---------- Heat Sink Medium Storage Unit > --- WEAPON ----------- Light Assault Rifle Datajack > --- INVENTORY -------- Ion Engine Aluminum Leg Aluminum Leg Particle Gun Light Assault Rifle Light Assault Rifle Grenade Launcher Grenade Launcher Datajack [Rating: 10] Favorites ----------- Power Light Nuclear Core Engine Ion Engine Power Core Light Nuclear Core Propulsion Aluminum Leg Leg Aluminum Leg Utility Heat Sink Device Heat Sink Storage Small Storage Unit Weapon Light Assault Rifle Ballistic Gun Light Assault Rifle Launcher Grenade Launcher Special Melee Weapon Datajack Build | -11 -10 ------- Run | Yrd Mat Slots Evolved . | . . Power . | . . Propulsion . | . . Utility . | . . Weapon . | . . Parts Attached 20 | 7 13 Power 3 | 2 1 Engine 2 | 2 . Core 1 | . 1 Reactor . | . . Propulsion 8 | 2 6 Treads . | . . Leg 8 | 2 6 Wheel . | . . Hover . | . . Flight . | . . Utility 4 | 1 3 Device 2 | . 2 Storage 2 | 1 1 Processor . | . . Hackware . | . . Protection . | . . Artifact . | . . Weapon 5 | 2 3 Energy Gun . | . . Energy Cannon . | . . Ballistic Gun 2 | 2 . Ballistic Cannon . | . . Launcher 2 | . 2 Special Weapon . | . . Impact Weapon . | . . Slashing Weapon . | . . Piercing Weapon . | . . Special Melee Weapon 1 | . 1 Unidentified Prototypes . | . . Parts Lost 3 | . 3 Power . | . . Propulsion 2 | . 2 Utility . | . . Weapon 1 | . 1 Highest Loss Streak 3 | . 3 To Critical Strikes . | . . Average Backups 6 | 1 7 Power . | . 1 Propulsion 1 | . 1 Utility . | . . Weapon 3 | . 3 Tool/Special . | . . Unused Backups 6 | . 6 Power . | . . Propulsion . | . . Utility 1 | . 1 Weapon 4 | . 4 Tool/Special 1 | . 1 Average Slot Usage (%) 96 | . 96 Engine 3 | . 3 Core 10 | . 10 Leg 27 | . 27 Device 11 | . 11 Storage 14 | . 14 Ballistic Gun 19 | . 19 Launcher 3 | . 3 Special Melee Weapon 5 | . 5 Peak Build Rating 10 | 6 10 Average Rating 8 | 4 8 On Entrance 3 | . 6 Avg Prop Armor Cover (%) . | . . Naked Turns . | . . Heaviest Build 20 | 12 20 Greatest Support 20 | 20 20 Greatest Overweight (x) 6 | 3 6 Average Overweight (x) . | 1 . Largest Inventory Capacity 10 | 8 10 Average Capacity 8 | 7 8 Most Carried 9 | 2 9 Average Carried 6 | 1 7 Final Capacity 10 | 8 10 Final Carried 6 | 2 6 Class Distribution -------------------- 58% | Mutant 41% | Scavenger-Mutant Dominant Class ---------------- Mutant | -10/Materials Resources | -11 -10 ----------- Run | Yrd Mat Matter Collected 476 | 198 278 Remotely . | . . Salvage Created 337 | . 337 Parts 34 | . 34 Haulers Intercepted . | . . Recyclers Shooed . | . . Parts Field Recycled . | . . Retrieved Matter . | . . Parts Self-Destructed . | . . Prevented . | . . Parts Restored . | . . Kills | -11 -10 ------- Run | Yrd Mat Combat Hostiles Destroyed 16 | . 16 Guns 5 | . 5 AOE 11 | . 11 Classes Destroyed 4 | . 4 Builder 1 | . 1 Operator 2 | . 2 Swarmer 6 | . 6 Grunt 10 | . 10 Best Kill Streak 7 | . 7 Combat Bots Only 7 | . 7 Max Kills in Single Turn 3 | . 3 Gunslinging . | . . Exploded 3 | . 3 Melee . | . . Uniques/NPCs Destroyed . | . . Combat | -11 -10 -------- Run | Yrd Mat Hostile Shots Fired 87 | . 87 Missed 21 | . 21 Hits 66 | . 66 Projectile 66 | . 66 Critical Strikes 1 | . 1 Damage Taken 934 | . 934 Core 257 | . 257 Absorbed by Shields . | . . Core Remaining (%) 100 | 100 . Volleys Fired 57 | . 57 Largest 2 | . 2 Hottest 40 | . 40 Shots Fired 93 | . 93 Gun 78 | . 78 Cannon . | . . Launcher 15 | . 15 Special . | . . Kinetic 78 | . 78 Thermal . | . . Explosive 15 | . 15 Electromagnetic . | . . Robot Hit Streak 8 | . 8 Robot Miss Streak 3 | . 3 Penetration Max . | . . Secondary Targets 2 | . 2 Max Gunslinging Chain 1 | . 1 Shots Hit Robots 60 | . 60 Core Hits 41 | . 41 Critical Kills . | . . Critical Parts Destroyed . | . . Critical Strikes . | . . Melee Attacks 2 | . 2 Impact . | . . Slashing . | . . Piercing . | . . Sneak Attacks 2 | . 2 Combat Hostiles . | . . Follow-up Attacks . | . . Damage Inflicted 1435 | . 1435 Guns 376 | . 376 Cannons . | . . Explosions 1059 | . 1059 Melee . | . . Ramming . | . . Kinetic 376 | . 376 Thermal . | . . Explosive 1059 | . 1059 Electromagnetic . | . . Impact . | . . Slashing . | . . Piercing . | . . Highest Corruption . | . . Average Corruption . | . . Corruption Purged . | . . Corruption Blocked . | . . Overload Shots . | . . Overflow Damage 19 | . 19 Projectiles . | . . Explosions 19 | . 19 Melee . | . . Knockbacks . | . . Impact . | . . Kinetic . | . . Secondary . | . . Self-Inflicted Damage 203 | . 203 Shots 7 | . 7 Rammed . | . . Targets Rammed . | . . Kicked . | . . Crushed . | . . Highest Temperature 40 | . 40 Average Temperature 17 | . 17 Received Heat Transfer 372 | . 372 Siege Activations . | . . Martial Activations . | . . Shielding Activations . | . . Robots Disrupted . | . . Combat Hostiles . | . . Robots Corrupted . | . . Combat Hostiles . | . . Parts Fried . | . . Impact Corruptions . | . . Robots Melted . | . . Combat Hostiles . | . . Parts Melted . | . . Heat Transferred . | . . Parts Sabotaged . | . . Parts Stolen . | . . Parts Stripped . | . . Power Chain Reactions . | . . Alert | -11 -10 ------- Run | Yrd Mat Maximum Alert Level 1 | . 1 Low Security (%) 92 | 100 91 Level 1 7 | . 8 Level 2 . | . . Level 3 . | . . Level 4 . | . . Level 5 . | . . High Security . | . . Max Security . | . . Peak Influence 317 | . 317 Initial . | . . Average 44 | . 50 Influence Increases 535 | . 535 Destroy 0b10 Robot/C 320 | . 320 Destroy 0b10 Robot/NC 15 | . 15 Destroy Leader 60 | . 60 Disable Machine 60 | . 60 Destroy Structure 65 | . 65 Lose Combat Pursuer 15 | . 15 Influence Decreases 218 | . 218 Time Decay 188 | . 188 Lost Part 30 | . 30 Squads Dispatched 4 | . 4 Investigation 1 | . 1 Extermination . | . . Reinforcement 3 | . 3 Assault . | . . Garrison . | . . Intercept . | . . Searches Triggered . | . . Construction Impeded . | . . Haulers Reinforced . | . . Active Scanning Responses . | . . Cargo Convoy Interrupts . | . . Stealth | -11 -10 --------- Run | Yrd Mat Distress Signals 1 | . 1 Communications Jammed . | . . Distress Signals . | . . Times Spotted 28 | . 28 Peak Tracking Total 7 | . 7 Tactical Retreats 1 | . 1 Traps | -11 -10 ------- Run | Yrd Mat Traps Triggered . | . . Indirectly . | . . Trap Hack Attempts . | . . Triggered . | . . Disarmed . | . . Reprogrammed . | . . Reused . | . . Traps Extracted . | . . Installed . | . . Triggered . | . . Machines | -11 -10 ---------- Run | Yrd Mat Machines Disabled 4 | . 4 Max in Single Turn 1 | . 1 Machines Repaired . | . . Machines Dismantled . | . . Machines Sabotaged . | . . Overloaded Fab Kills . | . . Hacking | -11 -10 --------- Run | Yrd Mat Machines Accessed 2 | . 2 Terminals 2 | . 2 Fabricators . | . . Repair Stations . | . . Recycling Units . | . . Scanalyzers . | . . Garrison Access . | . . Total Hacks 3 | . 3 Successful 1 | . 1 Failed 2 | . 2 Catastrophic 1 | . 1 Database Lockouts . | . . Manual . | . . Terminals 3 | . 3 Fabricators . | . . Repair Stations . | . . Recycling Units . | . . Scanalyzers . | . . Garrison Access . | . . Terminal Hacks 1 | . 1 Emergency Access Points 1 | . 1 Fabricator Hacks . | . . Repair Station Hacks . | . . Recycling Unit Hacks . | . . Scanalyzer . | . . Garrison Access Hacks . | . . Unauthorized Hacks . | . . Terminals . | . . Fabricators . | . . Repair Stations . | . . Recycling Units . | . . Scanalyzers . | . . Garrison Access . | . . Data Cores Recovered . | . . Used . | . . Hacking Detections 1 | . 1 Full Trace Events 1 | . 1 Feedback Events . | . . Feedback Blocked . | . . Robot Schematics Acquired . | . . Robots Built . | . . Authchips . | . . Time . | . . Total Robot Build Rating . | . . Part Schematics Acquired . | . . Parts Built . | . . Authchips . | . . Time . | . . Total Part Build Rating . | . . Part Studies Acquired . | . . Parts Repaired . | . . Time . | . . Parts Recycled . | . . Recycled Matter . | . . Retrieved Matter . | . . Retrieved Components . | . . Parts Scanalyzed . | . . Part Schematics Acquired . | . . Parts Damaged . | . . Bothacking | -11 -10 ------------ Run | Yrd Mat Used RIF Installer . | . . Robots Hacked 1 | . 1 Non-combat 1 | . 1 Combat . | . . Robot Hacks Applied 1 | . 1 parse_system 1 | . 1 Relay Couplers Released . | . . Fabnet Peak Effective % . | . . Robots Rewired . | . . Allies Hacked . | . . Hacks Repelled . | . . Allies | -11 -10 -------- Run | Yrd Mat Total Allies . | . . Largest Group . | . . Highest-Rated Group . | . . Highest-Rated Ally . | . . Total Orders . | . . Ally Attacks . | . . Total Damage . | . . Kills . | . . Allies Corrupted . | . . Allies Melted . | . . Intel | -11 -10 ------- Run | Yrd Mat Active Infowar (turns) . | . . Robot Analysis Total . | . . Derelict Logs Recovered . | . . Drone Launches . | . . Drone Recoveries . | . . Exploration | -11 -10 ------------- Run | Yrd Mat Turns Passed 593 | 67 526 Spaces Moved 335 | 40 295 Core 23 | 22 1 Treads . | . . Legs 312 | 18 294 Wheels . | . . Hover . | . . Flight . | . . Fastest Speed 50 | 50 120 Average Speed 122 | 136 120 Slowest Speed 350 | 200 350 Overloaded Moves . | . . Propulsion Burnouts . | . . Robots Hopped . | . . Potential Cave-ins . | . . Cave-ins Triggered . | . . Exploration Rate (%) 31 | 3 59 Regions Visited 1 Branch Regions . Pre-discovered Areas . | . . Known Exits Taken . | . . Unknown Exits Taken 1 | 1 . Scrap Searched . | . . Spaces Dug 6 | . 6 Terrain Destroyed 73 | . 73 Melee . | . . Projectile . | . . AOE 73 | . 73 Terrain Rammed . | . . Walls Destroyed . | . . Machines Disabled . | . . Actions | -11 -10 --------- Run | Yrd Mat Total 439 | 49 390 Wait 1 | . 1 Move 334 | 39 295 Hop . | . . Pick Up 12 | 3 9 Fast Attach 6 | 5 1 Attach 4 | 1 3 Detach . | . . Swap 12 | 1 11 Drop 11 | . 11 Fire 57 | . 57 Melee 2 | . 2 Ram . | . . Kick . | . . Crush . | . . Escape Stasis . | . . Rewire . | . . Trap . | . . Miscellaneous . | . . Route ------- -11/Scrapyard -10/Materials (discovered 2 exits: [*Mat] / [*Sub]) History --------- Turn | Location | Event 50 | -11/Scrapyard | Discovered new exit (range 14) 68 | -11/Scrapyard | Entered Materials 301 | -10/Materials | Build established: Mutant 329 | -10/Materials | Core integrity fell below 50% 379 | -10/Materials | Discovered new exit (range 14) 468 | -10/Materials | Discovered new exit (range 9) 555 | -10/Materials | Core integrity fell below 20% 576 | -10/Materials | Destroyed 7 combat bots 585 | -10/Materials | Lost 3 parts (2n1w) 594 | -10/Materials | Destroyed by G-34 Mercenary with Small Laser Last Messages --------------- (14,29) (11,29) Map updated. 00575_ U-05 Engineer lays Concrete. 00577_ K-01 Serf collects debris. 00579_ U-05 Engineer lays Concrete. 00580_ K-01 Serf collects debris. 00580_ U-05 Engineer lays Concrete. 00580_ U-05 Engineer builds a Wall. 00581_ U-05 Engineer lays Concrete. 00584_ The unstable cave ceiling collapses. 00584_ K-01 Serf collects debris. 00584_ U-05 Engineer lays Concrete. 00584_ U-05 Engineer builds a Wall. 00587_ The unstable cave ceiling collapses. 00587_ K-01 Serf collects debris. 00589_ G-34 Mercenary destroyed. 00590_ U-05 Engineer lays Concrete. 00593_ The unstable cave ceiling collapses. 00593_ U-05 Engineer lays Concrete. Map ----- +----------------------------------------------------+ | ???????????????????????????????????########### | | ???????????????????????????????????# | | ???????????????????????????????????# """"""" | | ???????????????????????????????????# """"""" | | ???????????????????????????????????#! """"""" | | ?????????????????????##########????# """"""" | | ?????????????????????# #????# """"""" | | ?????????????????????# ! [ ###### | | ?????????????????????# ]] #######+#### | | ?????????????????????# ]] # # | | ?????????????????????# # < # # ### | | ?????????????????????# " # # + #?? | | ??????????????????#### uT" += # # #?? | | ??????????????????# " # # # #?? | | ?????????????????## # ###### #?? | | ??????????# ????## g ## ! ##???# #?? | | ?????? ### g ## # # ! ##### #?? | | ?????# = # ### | | ?????# !%= % + T | | ?????# # | | ???????????# "" # ##### | | ???????????# R ## ### ########???# | | ???????????# """* u # T########### | | ???????????# = a | | ???????????# [ | | ???????????# @ ^ | | ????????????#####+ # "" """" """" """" | | ???????????????? "" " """" """" """" | | ??????????????# """ # """" """" """" """" | | ???????????+??+ """ # u | | ??????????????# """ # ? | | ??????????????# # """" ???" """" | | ??????????????# # """" ???" """" | | ????????????????###### [] """" ?"?"" """" | | ?????????????????????# [] w ?????? | | ????????????????????? [] ?????? | | ????????????????????? ?????? | | ????????????????????? m ??????? | | ?????????????????????##+#######??????????????? | | ?????????????????????????????????????????????? | | ?????????????????????????????????????????????# | | ?????????????????????????????????????????????# | | ?????????????????????????????????????????????# | | ?????????????????????????????????????????????# | | ?????????????????????????????????????????????# | | ?????????????????????????????????????????????# | | ?????????????????????????????????????????????# | | ?????????????????????????????????????????????# | | ?????????????????????????????????????????#?### | | ????????????????????????????????????????? # | +----------------------------------------------------+ Best States ------------- Heat Dissipation 35 Energy Generation 14 Energy Capacity 250 Matter Stores 264 Matter Capacity 300 Sight Range 16 Terrain Scan Density 10 Evasion (%) 55 Item Schematics ----------------- None Robot Schematics ------------------ None Fabricated ------------ Nothing Repaired ---------- Nothing Studied --------- None Alien Tech Used ----------------- None Achievements -------------- None Challenges ------------ None Game ------ Seed FluxCompositeDeflector Manual? 0 Play Time 00:15:19 Cumulative 17.5 hours Start 2025.11.19 @ 22:22:36 End 2025.11.19 @ 22:42:31 Sessions 7 Manual Loads 0 Difficulty Rogue Special Mode None Game No. 23 Rogue 23 Adventurer 0 Explorer 0 Win Type - Total 0 Types 0/0/0/0/0/0/0/0/0/0 Lore% 8 Gallery% 21 Achievement% 18 Wizard Run 0 Options --------- Layout 0 ASCII 1 Keyboard 1 Movement Numpad Keybinds 0 Fullscreen 1 Font 24/Smallcaps Map View 113x50 Zoom Use 0% Tactical HUD 1 Map Filters NONE Filters NONE Steam 1 RUN: 969a2eff-eede-4379-8f48-7ec435915cd1